{"text_format":"1","workbook":"xlsx","n_sheets":4,"sheets":["生産条件変更通知データ入力","4M Change Data Input","Sheet2","Sheet3"],"not_rendered":{"charts":0,"images":54,"macros":1,"external_links":0,"defined_names":0,"comments":0,"pivot_tables":0},"unopened":[],"bounds":{"document_bytes":16777216,"sheet_cells":100000,"rows_first":2000,"rows_last":500,"rows_between":2000,"halvings":0,"cell_chars":16384,"cell_head_chars":4096},"cells_cut":0,"cells_raw":0,"read":"whole","date_system":"1900"}

{"sheet":"生産条件変更通知データ入力","index":0,"n_rows":55,"n_cols":5,"rows_kept":55,"cut":false,"hidden":false,"merged":[[44,2,44,3],[48,2,48,3],[49,2,49,3],[1,1,1,4],[3,2,3,3],[6,2,6,3],[7,2,7,3],[9,2,9,3],[8,2,8,3]]}
[" MaX 生産条件変更通知データ入力",null,null,null,"Ver. 3.2　（変更理由に注釈を追加）"]
[null,"本入力ツールでは、EXCELの『マクロを有効』にしてから入力して下さい。\n\n作成手順\n　①生産条件変更情報（白抜き部分）を入力　\n　②入力完了後、『データチェック』ボタンより入力項目をチェック\n　③不足項目があればコメントを参考に修正\n　④入力項目に問題なければ、『4M変更申請 作成』ボタンが表示され、ボタンを押して『TXTファイル』を作成\n　⑤富士通の購買担当へ、『TXTファイル』を送付\n　※申請後でも、変更内容について問い合わせることがありますので、ご了承願います。\n\n　（★必須入力）"]
[null,"★ 申請日：",null,"記入例：西暦/月/日"]
[null,"★ 会社名："]
[null," QAA締結有無："]
[null,"Tel_No："]
[null,"★ 図番："]
[null,"★ 品名："]
[null,"★ FJの製造工場："]
[null,"機種："]
[]
[]
[]
[null,"★変更の種類："]
[]
[]
[]
[]
[]
[]
[]
[]
[]
[]
[]
[null,"変更の種類別に"]
[null,"提出すべきデータ："]
[]
[]
[]
[]
[]
[]
[]
[]
[]
[]
[]
[]
[]
[]
[]
[]
[null,"データ提供予定日：",null,"記入例：西暦/月/日"]
[null,"★ サンプル有無："]
[null,"サンプル提供予定日：",null,"記入例：西暦/月/日"]
[null,"サンプル数：",null,"個 記入例：半角数字"]
[]
[null,"★ 変更内容：\n（変更前・後の内容を、\n具体的に記入ください）"]
[null,"★ 変更理由：\n（製番、注番があれば\n記入ください）\n（変更の妥当性を具体的に記入し、エビデンスを添付ください）"]
[]
[null,"変更時期：",null,"記入例：西暦/月/日"]
[null,"評価完了希望日：",null,"記入例：西暦/月/日"]
[]
[null,"①②③入力が終わりましたら、『データチェック』を押してください。"]

{"sheet":"4M Change Data Input","index":1,"n_rows":55,"n_cols":5,"rows_kept":55,"cut":false,"hidden":false,"merged":[[11,1,16,1],[1,1,1,5],[23,1,27,1],[49,2,49,3],[3,2,3,3],[6,2,6,3],[7,2,7,3],[8,2,8,3],[9,2,9,3],[44,2,44,3],[48,2,48,3]]}
["Max 4M Change Notification Data Input",null,null,null,"Ver. 3.2　（Add annotation to change reason）"]
[null,"Please turn on the macro. \nInput steps.\n　1. Please fill in the form below.\n　2. Please push the Input Data Check button after the form is completed. \n　3. Please correct erroneous data when the error message is displayed. \n　4. Please push the Notification making button which is displayed when there are no errors. \n　5. Please transmit the text file to the purchasing department of FUJITSU. \n\n　（* Compulsory input）"]
[null,"* Application Date：",null,"ex：2010/MM/DD"]
[null,"* Company Name："]
[null,"The conclusion of QAA："]
[null,"Tel_No"]
[null,"* D/N："]
[null,"* Product Description："]
[null,"* Object factory："]
[null,"Model："]
[]
[null,"* The change is planned in; (Check the appropriate box below)"]
[]
[]
[]
[]
[]
[]
[]
[]
[]
[]
[]
[null,"Data that should \nbe submitted \naccording to kind. "]
[]
[]
[]
[]
[]
[]
[]
[]
[]
[]
[]
[]
[]
[]
[]
[]
[]
[]
[]
[null,"Data Offer date：",null,"ex：2010/MM/DD"]
[null,"* Sample"]
[null,"Sample Offer date：",null,"ex：2010/MM/DD"]
[null,"Sample Pcs：",null,"pcs ex：Only the Number"]
[]
[null,"* Describe the details before and after the change."]
[null,"* Describe the reason for change in detail.\n(Fill in the validity of change concretely and attach evidence.)"]
[]
[null,"Change Date：",null,"ex：2010/MM/DD"]
[null,"Notification Desired Date：",null,"ex：2010/MM/DD"]
[]
[null,"Please push 'Input Data Check' button after completing steps 1-3. "]

{"sheet":"Sheet2","index":2,"n_rows":53,"n_cols":2,"rows_kept":53,"cut":false,"hidden":true,"merged":[]}
[]
["バージョン",3.2]
["申請日",{"$f":"IF(生産条件変更通知データ入力!C3=\"\",\"\",生産条件変更通知データ入力!C3)","v":""}]
["会社名",{"$f":"生産条件変更通知データ入力!C4","v":0}]
["QAA締結有無",""]
["Tel_No",{"$f":"IF(生産条件変更通知データ入力!C6=\"\",\"\",生産条件変更通知データ入力!C6)","v":""}]
["図番",{"$f":"IF(生産条件変更通知データ入力!C7=\"\",\"\",生産条件変更通知データ入力!C7)","v":""}]
["品名",{"$f":"生産条件変更通知データ入力!C8","v":0}]
["対象工場",{"$f":"生産条件変更通知データ入力!C9","v":0}]
["機種",{"$f":"IF(生産条件変更通知データ入力!C10=\"\",\"\",生産条件変更通知データ入力!C10)","v":""}]
[]
[]
["人",0]
["設備",0]
["材料",0]
["作業方法",0]
[null,{"$f":"SUM(B13:B16)","v":0}]
[]
[]
[]
["QC",0]
["評価",0]
["検査成績書",0]
["組織図",0]
["教育記録",0]
["作業能力",0]
["RoHS",0]
["作業環境",0]
["識別",0]
["校正",0]
["成績書",0]
["素子情報",0]
[]
["データその他",0]
["データコメント"]
["データ数",{"$f":"SUM(B21:B34)","v":0}]
[]
[]
[]
[]
[]
[]
[]
["データ予定日",{"$f":"IF(生産条件変更通知データ入力!C44=\"\",\"\",生産条件変更通知データ入力!C44)","v":""}]
["サンプル有無",1]
["サンプル予定日",{"$f":"IF(生産条件変更通知データ入力!C46=\"\",\"\",生産条件変更通知データ入力!C46)","v":""}]
["サンプル数",{"$f":"生産条件変更通知データ入力!C47","v":0}]
[]
["変更内容",{"$f":"生産条件変更通知データ入力!C49","v":0}]
["変更理由",{"$f":"生産条件変更通知データ入力!C50","v":0}]
[]
["変更時期",{"$f":"IF(生産条件変更通知データ入力!C52=\"\",\"\",生産条件変更通知データ入力!C52)","v":""}]
["完了希望日",{"$f":"IF(生産条件変更通知データ入力!C53=\"\",\"\",生産条件変更通知データ入力!C53)","v":""}]

{"sheet":"Sheet3","index":3,"n_rows":53,"n_cols":2,"rows_kept":53,"cut":false,"hidden":true,"merged":[]}
[]
["バージョン",3.2]
["申請日",{"$f":"IF('4M Change Data Input'!C3=\"\",\"\",'4M Change Data Input'!C3)","v":""}]
["会社名",{"$f":"'4M Change Data Input'!C4","v":0}]
["QAA締結有無",""]
["Tel_No",{"$f":"IF('4M Change Data Input'!C6=\"\",\"\",'4M Change Data Input'!C6)","v":""}]
["図番",{"$f":"IF('4M Change Data Input'!C7=\"\",\"\",'4M Change Data Input'!C7)","v":""}]
["品名",{"$f":"'4M Change Data Input'!C8","v":0}]
["対象工場",{"$f":"'4M Change Data Input'!C9","v":0}]
["機種",{"$f":"IF('4M Change Data Input'!C10=\"\",\"\",'4M Change Data Input'!C10)","v":""}]
[]
[]
["人",0]
["設備",0]
["材料",0]
["作業方法",0]
[null,{"$f":"SUM(B13:B16)","v":0}]
[]
[]
[]
["QC",0]
["評価",0]
["検査成績書",0]
["組織図",0]
["教育記録",0]
["作業能力",0]
["RoHS",0]
["作業環境",0]
["識別",0]
["校正",0]
["成績書",0]
["素子情報",0]
[]
["データその他",0]
["データコメント"]
["データ数",{"$f":"SUM(B21:B34)","v":0}]
[]
[]
[]
[]
[]
[]
[]
["データ予定日",{"$f":"IF('4M Change Data Input'!C44=\"\",\"\",'4M Change Data Input'!C44)","v":""}]
["サンプル有無"]
["サンプル予定日",{"$f":"IF('4M Change Data Input'!C46=\"\",\"\",'4M Change Data Input'!C46)","v":""}]
["サンプル数",{"$f":"'4M Change Data Input'!C47","v":0}]
[]
["変更内容",{"$f":"'4M Change Data Input'!C49","v":0}]
["変更理由",{"$f":"'4M Change Data Input'!C50","v":0}]
[]
["変更時期",{"$f":"IF('4M Change Data Input'!C52=\"\",\"\",'4M Change Data Input'!C52)","v":""}]
["完了希望日",{"$f":"IF('4M Change Data Input'!C53=\"\",\"\",'4M Change Data Input'!C53)","v":""}]